{"text_format":"1","workbook":"xlsx","n_sheets":1,"sheets":["maschinelles Ausfüllen "],"not_rendered":{"charts":0,"images":2,"macros":0,"external_links":0,"defined_names":12,"comments":0,"pivot_tables":0},"unopened":[],"bounds":{"document_bytes":16777216,"sheet_cells":100000,"rows_first":2000,"rows_last":500,"rows_between":2000,"halvings":0,"cell_chars":16384,"cell_head_chars":4096},"cells_cut":0,"cells_raw":0,"read":"whole","date_system":"1900"}

{"sheet":"maschinelles Ausfüllen ","index":0,"n_rows":122,"n_cols":34,"rows_kept":122,"cut":false,"hidden":false,"merged":[[117,6,117,7],[117,9,117,10],[16,1,16,2],[16,5,16,6],[16,8,16,10],[17,1,17,2],[9,7,9,11],[10,8,10,9],[11,5,11,6],[11,8,11,9],[14,9,14,10],[0,5,0,9],[4,10,4,11],[6,9,6,11],[7,10,7,11],[8,6,8,7]]}
["Eingabemaske     nicht in die grauen Felder schreiben",null,null,null,null,null,null,null,null,null,"intern für Buchungszwecke"]
[null,"nicht in das Abrechnungsformular rechts reinschreiben !!! ",null,null,null,"intern für Buchungszwecke",null,null,null,null,"                Buchungs-Nr."]
[null,"Ihre Eingaben werden automatisch in das Abrechnungsformular übernommen.",null,null,null,"Sachlich  richtig"]
["Vor- u. Nachname: ",null,null,null,null,"Rechnerisch richtig",null,null,null,null,"siehe unten",{"$f":"IF(+B15=0,\"\",+B15)","v":""}]
["E-Mail-Adresse:",null,null,null,null,"Geprüft und genehmigt",null,null,null,null,"gebucht am"]
["Ort",null,null,null,null,"Entschädigungs- und Reisekostenabrechnung"]
["Postleitzahl",null,null,null,null,"Vor- u. Nachname: ",{"$f":"IF(+B4=0,\"\",+B4)","v":""},null,"E-Mail-Adresse:",{"$f":"IF(+B5=0,\"\",+B5)","v":""}]
["Tel.Nr.",null,null,null,null,"Ort",{"$f":"IF(+B6=0,\"\",+B6)","v":""},"Postleitzahl",{"$f":"IF(+B7=0,\"\",+B7)","v":""},"Tel.Nr.",{"$f":"IF(+B8=0,\"\",+B8)","v":""}]
["Anlass/Veranstaltung: ",null,null,null,null,"Bankinstitut:",{"$f":"IF(+B18=0,\"\",+B18)","v":""},null,"IBAN: ",{"$f":"IF(+B17=0,\"\",+B17)","v":""}]
["Ort d. Veranstaltung:",null,null,null,null,"Anlass/Veranstaltung: ",null,{"$f":"IF(+B9=0,\"\",+B9)","v":""}]
["Datum der Veranstaltung",null,null,null,null,"Ort d. Veranstaltung:",null,{"$f":"IF(+B10=0,\"\",+B10)","v":""},"Datum der Veranstaltung:",null,{"$f":"IF(+B11=0,\"\",+B11)","v":""}]
["laufende Antragsnummer",null,"optional: Falls Sie eine persönliche Antragsnummerierung haben",null,null,"Antragserstellungsdatun",null,{"$f":"IF(+B14=0,\"\",+B14)","v":"2025-04-24T15:08:38.810"},"laufende Antragsnummer",null,{"$f":"IF(+B12=0,\"\",+B12)","v":""}]
[]
["Antragserstellungsdatum",{"$f":"NOW()","v":"2025-04-24T15:08:38.810"},"wird automatisch gesetzt",null,null,"E n t s c h ä d i g u n g e n"]
["Kreditorennummer",null,"Falls Sie Ihre Kreditorennummer kennen, bitte eintragen.",null,null,"Anreisedauer von","bis","Beginn der Sitzung","Ende der Sitzung","Rückreisedauer von            bis",null,"Betrag Euro"]
[null,null,null,null,null,{"$f":"IF(+B24=0,\"\",+B24)","v":""},{"$f":"IF(+C24=0,\"\",+C24)","v":""},{"$f":"IF(+B25+B22=0,\"\",+B25+B22)","v":""},{"$f":"IF(+C25+C22=0,\"\",+C25+C22)","v":""},{"$f":"IF(+B26=0,\"\",+B26)","v":""},{"$f":"IF(+C26=0,\"\",+C26)","v":""},{"$f":"IF(+D23=0,\"\",+H16*N16)","v":""}]
["IBAN",null,null,null,null,"Reisezeit mit Wartezeit (Std.)",null,{"$f":"IF(+D24+D26=0,\"\",+D24+D26)","v":""},"Entschädigung (Reisezeiten à 35 €/Std.)",null,null,{"$f":"IF(+D24+D26=0,\"\",+H17*N17)","v":""},null,35,null,{"$f":"+D24+D26","v":"00:00:00"},null,{"$f":"+H17*N17","v":{"$error":"#VALUE!"}},null,null,null,null,null,null,null,null,null,null,null,null,null,null,null,{"$f":"IF(+D27+D28=0,\"keine\",+D27+D28)","v":"keine"}]
["Bankinstitut",null,null,null,null,"Sitzungszeit (Std.)",null,{"$f":"IF(+D25+D22=0,\"\",+D25+D22)","v":""},null,null,"Entschädigung (Sitzungszeit à 60 €/Std.)",{"$f":"IF(+D25+D22=0,\"\",+H18*N18)","v":""},null,60]
[null,"von","bis",null,null,null,null,null,null,null,null,null,null,35,null,{"$f":"+H18*N19","v":{"$error":"#VALUE!"}}]
["Wenn Sie außschließlich Sitzungszeiten z.B. Videokonferenzen abrechnen wollen bitte hier eintragen"]
["Achtung","                       ↓↓","                       ↓↓","Achtung",null,"                                         Pauschale für Vertreterversammlung  bzw. DPT"]
["Sitzungszeiten ohne Reise",null,null,{"$f":"(ROUNDDOWN((C22-B22)*96,0)/96)*24","v":0},null,null,null,null,null,"Sitzungstage",null,"Gesamtbetrag"]
[null,"bitte die Zeilen 24 bis 26 ausfüllen",null,null,null,"Pauschale bis 4 Stunden",null,160,null,{"$f":"IF(+D33=0,\"\",+D33)","v":""},null,{"$f":"IF(+D33=0,\"\",+C33*D33)","v":""},null,null,null,{"$f":"+P14*N17","v":0}]
["Anreisedauer ",null,null,{"$f":"(ROUNDDOWN((C24-B24)*96,0)/96)*24","v":0},null,"Pauschale über 4 Stunden",null,275,null,{"$f":"IF(+D34=0,\"\",+D34)","v":""},null,{"$f":"IF(+D34=0,\"\",+C34*D34)","v":""}]
["Sitzungszeiten ",null,null,{"$f":"(ROUNDDOWN((C25-B25)*96,0)/96)*24","v":0},null,"Summe Aufwandsentschädigungen ",null,null,null,null,null,{"$f":"SUM(L16:L24)","v":0}]
["Rückreisedauer",null,null,{"$f":"(ROUNDDOWN((C26-B26)*96,0)/96)*24","v":0}]
[]
[null,null,null,null,null,"R e i s e k o s t e n",null,null,null,null,null,null,{"$f":"+#REF!*N17","v":{"$error":"#REF!"}}]
["bitte die Uhrzeiten  für Anreisedauer,Rückreisedauer und Sitzungszeiten  auf Viertelstunde genau eintragen",null,null,null,null,"Öffentliche Verkehrsmittel                      ","Bezahlter Fahrpreis gemäß Beleg",null,null,null,null,{"$f":"IF(+D36=0,\"\",+D36)","v":""},{"$f":"+D27*N17","v":0},null,{"$f":"+D33","v":0}]
["Beispiel für das Format: Anreise Viertel nach zehn bis  zwölf Uhr 30= 2Stunden und 15 Minuten:    Eingabe:     10:15          12:30             2,25   ",null,null,null,null,null,"Eingesparter Betrag durch Nutzung einer Bahncard",null,null,">>>>>>>>>>>>>",{"$f":"IF(+D37=0,\"\",+D37-D36)","v":""},null,null,null,{"$f":"+D34","v":0}]
[null,null,null,"1Bitte Anzahl der Tage  ",null,null,"30% der Differenz bei Nutzung einer Bahncard",null,null,null,null,{"$f":"IF(+D37=0,\"\",(+K30)*0.3)","v":""}]
["Pauschale Vertreterversammlung oder DPT ",null,null,"hier eintragen",null,null,"Taxi / öffentlicher Nahverkehr",null,null,null,null,{"$f":"IF(+D41=0,\"\",+D41)","v":""}]
[null,"Pauschale bis 4 Stunden Sitzungszeit",160,null,null,null,"Flugticket",null,null,null,null,{"$f":"IF(+D39=0,\"\",+D39)","v":""}]
[null,"Pauschale über  4 Stunden Sitzungszeit",275,null,null,null,"PKW (km)  0,30 Euro / km",null,null,"gefahrene Kilometer",{"$f":"IF(+D47=0,\"\",+D47)","v":""},{"$f":"IF(+D47=0,\"\",+AF39*D47)","v":""},null,null,null,{"$f":"+#REF!","v":{"$error":"#REF!"}}]
["Öffentliche Verkehrsmittel",null,null,null,null,"PKW","PKW (km)  0,40 Euro / km bei Mitnahme",null,null,"gefahrene Kilometer",{"$f":"IF(+D48=0,\"\",+D48)","v":""},{"$f":"IF(+D48=0,\"\",+AF40*D48)","v":""}]
["bezahlter Fahrpreis gemäß beigefügtem Beleg ",null,null,null,null,null,"Name des Mitfahrers  >>>>>>>>>>>>>",null,null,{"$f":"IF(+D49=0,\"\",+D49)","v":""}]
["regulärer Fahrpreis ohne  Bahncard. (Preis ohne Rabattierung eintragen)",null,null,null,null,null,"Parkgebühren o.ä.",null,null,null,null,{"$f":"IF(+D40=0,\"\",+D40)","v":""}]
[null,null,null,null,null,null,"Betreuungskosten",null,null,null,null,{"$f":"IF(+D42=0,\"\",+D42)","v":""}]
["Flugticket (Beleg beifügen)",null,null,null,null,null,"Übernachtungen",null,null,null,null,{"$f":"IF(+D43=0,\"\",+D43)","v":""},null,0.3,null,null,null,null,null,null,null,null,null,null,null,null,null,null,null,null,null,0.3]
["Parkgebühren o.ä. (Beleg beifügen)",null,null,null,null,null,"Sonstiges",null,{"$f":"IF(+A45=0,\"\",+A45)","v":""},null,null,{"$f":"IF(+D45=0,\"\",+D45)","v":""},null,null,null,null,null,null,null,null,null,null,null,null,null,null,null,null,null,null,null,0.4]
["Taxi / öffentlicher Nahverkehr (Beleg beifügen)",null,null,null,null,"Summe Reisekosten",null,null,null,null,null,{"$f":"SUM(L29:L40)","v":0}]
["Betreuungskosten"]
["Übernachtungen (Beleg beifügen)",null,null,null,null,null,{"$f":"IF(+A52=0,\"\",(+A52))","v":""}]
["Sonstiges",null,null,"Beträge eintragen",null,null,{"$f":"IF(+A53=0,\"\",(+A53))","v":""}]
[null,null,"Links Inhalt(z.B.Blumen, Toner etc. eintragen",null,null,"Bemerkungen",{"$f":"IF(+A54=0,\"\",(+A54))","v":""}]
["PKW ",null,null,null,null,null,{"$f":"IF(+A55=0,\"\",(+A55))","v":""}]
["PKW (km)  0,30 Euro / km",null,"gefahrene Kilometer eintragen"]
["PKW (km)  0,40 Euro / km nur bei Mitnahme anderer Teilnehmer",null,"gefahrene Kilometer eintragen",null,null,"Summe Reisekosten und Aufwandsentschädigungen:",null,null,null,null,null,{"$f":"+L25+L41","v":0},null,null,null,null,null,null,null,null,null,null,null,null,null,null,null,"wenn( + f25=0;\"\";(+p26-p27)*0,3"]
["Mitfahrer",null,"Name des (der) Mitfahrer eintragen"]
["Bemerkungen"]
["Im  Feld unten ist Platz für Ihre Hinweise, Erläuterungen",null,null,null,null,"Bitte Orginalbelege beifügen!",null,null,null,"Unterschrift:"]
[null,null,null,null,null,"Ich versichere die Richtigkeit meiner Angaben"]
[]
[null,null,null,null,null,"Datum: ",{"$f":"+B14","v":"2025-04-24T15:08:38.810"}]
[]
[]
[]
[]
[]
[]
[]
[]
[]
[]
[]
[]
[]
[]
[]
[]
[]
[]
[]
[]
[]
[]
[]
[]
[]
[]
[]
[]
[]
[]
[]
[]
[]
[]
[]
[]
[]
[]
[]
[]
[]
[]
[]
[]
[]
[]
[]
[]
[]
[]
[]
[]
[]
[]
[]
[]
[]
[]
[]
[]
[]
[]
[]
[null,"Nur für Vorstand, wenn keine Reise- und Sitzungszeiten erlaubt bzw. vergütet werden sollen",null,null,null,null,"Reisezeit + Wartezeit ohne Entschädigung in Std.",null,{"$f":"IF(+D119+D121+D122=0,\"\",+D119+D121+D122)","v":0.75},"Sitzungszeit ohne Entschädigung in Stunden",null,{"$f":"IF(+D120=0,\"\",+D120)","v":5.5}]
["Anreisedauer ","10:00:00","11:00:00",{"$f":"(ROUNDDOWN((C119-B119)*96,0)/96)*24","v":0.75},null,null,{"$f":"IF(+B119=0,\"\",+B119)","v":"10:00:00"},{"$f":"IF(+C119=0,\"\",+C119)","v":"11:00:00"},{"$f":"IF(+B120=0,\"\",+B120)","v":"11:00:00"},{"$f":"IF(+C120=0,\"\",+C120)","v":"16:30:00"},{"$f":"IF(+B121=0,\"\",+B121)","v":"16:30:00"},{"$f":"IF(+C121=0,\"\",+C121)","v":"16:30:00"}]
["Sitzungszeiten","11:00:00","16:30:00",{"$f":"(ROUNDDOWN((C120-B120)*96,0)/96)*24","v":5.5}]
["Rückreisedauer","16:30:00","16:30:00",{"$f":"(ROUNDDOWN((C121-B121)*96,0)/96)*24","v":0}]
["Wartezeiten in Stunden ",{"$f":"+B120-C119","v":"00:00:00"},{"$f":"+B121-C120","v":"00:00:00"},{"$f":"(ROUNDUP((+B122+C122)*96,0)/96)*24","v":0}]